bitfinex-derivatives/quotes_BTCF0:USTF0_20250822
["timestamp","ask_amount","ask_price","bid_price","bid_amount"]
[1755825797339,0.21084,112740.0,112730.0,3.65510088]
[1755825797544,0.17918,112740.0,112730.0,3.65510088]
[1755825799348,0.17918,112740.0,112730.0,3.54335049]
[1755825799645,0.20111,112740.0,112730.0,3.2626774]
[1755825799840,0.17918,112740.0,112730.0,3.54335049]
[1755825801151,0.21084,112740.0,112730.0,3.54335049]
[1755825801846,0.17918,112740.0,112730.0,3.54335049]
[1755825802048,0.20111,112740.0,112730.0,3.54335049]
[1755825802347,0.21084,112740.0,112730.0,3.54335049]
[1755825803549,0.22705,112740.0,112730.0,3.54335049]
[1755825804251,0.22705,112740.0,112730.0,3.65510088]
[1755825804737,0.17918,112740.0,112730.0,3.65510088]
[1755825809153,0.21084,112740.0,112730.0,3.65510088]
[1755825809454,0.21084,112740.0,112730.0,3.37442779]
[1755825809661,0.21084,112740.0,112730.0,3.65510088]
[1755825810955,0.21084,112740.0,112730.0,1.96822088]
[1755825813455,0.17918,112740.0,112730.0,1.96822088]
[1755825815667,0.17918,112740.0,112730.0,3.54327049]
[1755825815957,0.05934786,112740.0,112730.0,3.54327049]
[1755825816752,0.05934786,112740.0,112730.0,3.65508089]
[1755825818458,0.05934786,112740.0,112730.0,3.80238089]
[1755825818656,0.05934786,112740.0,112730.0,3.65508089]
[1755825818961,0.03595786,112740.0,112730.0,3.65508089]
[1755825820261,0.03595786,112740.0,112730.0,3.93575398]
[1755825822666,0.03595786,112740.0,112730.0,3.82394358]
[1755825823062,0.02457,112750.0,112730.0,4.07613028]
[1755825823367,0.02457,112750.0,112740.0,1.91009638]
[1755825823568,0.02457,112750.0,112740.0,1.92815969]
[1755825823865,0.0465,112750.0,112740.0,1.92815969]
[1755825824066,0.0856,112750.0,112740.0,2.19375969]
[1755825824564,0.09533,112750.0,112740.0,2.19375969]
[1755825825763,0.15716,112750.0,112740.0,1.54369401]
[1755825825963,0.15716,112750.0,112740.0,1.9130866]
[1755825826557,0.15716,112750.0,112740.0,1.8332159]
[1755825826956,0.12555,112750.0,112740.0,2.11388899]
[1755825827157,0.0734,112750.0,112740.0,2.11388899]
[1755825827364,0.09595,112750.0,112740.0,2.11388899]
[1755825829567,0.06367,112750.0,112740.0,2.11388899]
[1755825829773,0.0391,112750.0,112740.0,2.11388899]
[1755825829969,0.0391,112750.0,112740.0,2.19375969]
[1755825830769,0.02392,112760.0,112740.0,2.37119329]
[1755825830969,0.02392,112760.0,112750.0,0.81005539]
[1755825831173,0.02392,112760.0,112750.0,0.73018469]
[1755825832157,0.02392,112760.0,112750.0,0.4495116]
[1755825832362,0.02392,112760.0,112750.0,0.73018469]
[1755825833670,0.02492,112760.0,112750.0,0.73018469]
[1755825834064,0.02392,112760.0,112750.0,0.73018469]
[1755825835764,0.08708,112760.0,112750.0,1.72623309]
[1755825836072,0.11866,112760.0,112750.0,0.90707309]
[1755825836281,0.11866,112760.0,112750.0,1.80584951]
[1755825836976,0.40013309,112760.0,112750.0,0.70605642]
[1755825837169,0.40013309,112760.0,112750.0,1.52517642]
[1755825838279,0.46363309,112760.0,112750.0,1.44552]
[1755825838472,0.18216,112760.0,112750.0,1.72619309]
[1755825839578,0.18216,112760.0,112750.0,1.44552]
[1755825839776,0.18216,112760.0,112750.0,1.72619309]
[1755825840379,0.15058,112760.0,112750.0,1.81490469]
[1755825840582,0.18216,112760.0,112750.0,1.44552]
[1755825840776,0.18216,112760.0,112750.0,1.72619309]
[1755825841783,0.18216,112760.0,112750.0,1.46059309]
[1755825842887,0.18216,112760.0,112750.0,1.17988]
[1755825844082,0.15058,112760.0,112750.0,1.46055309]
[1755825844286,0.15058,112760.0,112750.0,1.6130141]
[1755825844480,0.13596,112760.0,112750.0,1.6130141]
[1755825844682,0.0973,112760.0,112750.0,1.6130141]
[1755825844984,0.0973,112760.0,112750.0,1.54926469]
[1755825845388,0.11985,112760.0,112750.0,1.54926469]
[1755825848484,0.0973,112760.0,112750.0,1.54926469]
[1755825848685,0.11985,112760.0,112750.0,1.54926469]
[1755825852391,0.11985,112760.0,112750.0,1.34824802]
[1755825852592,0.11985,112760.0,112750.0,1.62892111]
[1755825854195,0.11985,112760.0,112750.0,1.54926469]
[1755825854697,0.11985,112760.0,112750.0,1.62899688]
[1755825854895,0.08742,112760.0,112750.0,1.62899688]
[1755825855189,0.0635,112760.0,112750.0,1.54926469]
[1755825855392,0.08742,112760.0,112750.0,1.66108367]
[1755825855589,0.08742,112760.0,112750.0,1.66408367]
[1755825856696,0.08742,112760.0,112750.0,1.66608367]
[1755825856897,0.0635,112760.0,112750.0,1.66608367]
[1755825857097,0.0635,112760.0,112750.0,1.66308367]
[1755825857398,0.08676,112760.0,112750.0,1.66408367]
[1755825857599,0.08676,112760.0,112750.0,1.66508367]
[1755825858294,0.08676,112760.0,112750.0,1.66208367]
[1755825858495,0.08676,112760.0,112750.0,1.66308367]
[1755825859500,0.08676,112760.0,112750.0,1.92868367]
[1755825859910,0.0635,112760.0,112750.0,1.92868367]
[1755825860510,0.08676,112760.0,112750.0,1.92868367]
[1755825863114,0.0635,112760.0,112750.0,1.92868367]
[1755825863713,0.0635,112760.0,112750.0,1.81686469]
[1755825863914,0.00439899,112760.0,112750.0,1.81686469]
[1755825870118,0.02765899,112760.0,112750.0,1.81686469]
[1755825872016,0.22809,112770.0,112760.0,0.03684]
[1755825872222,0.22809,112770.0,112760.0,1.15912371]
[1755825872613,0.35949,112770.0,112760.0,1.15912371]
[1755825873013,0.32848,112770.0,112760.0,1.23871788]
[1755825873213,0.32848,112770.0,112760.0,1.15912371]
[1755825877128,0.32848,112770.0,112760.0,1.44241234]
[1755825879627,0.35174,112770.0,112760.0,1.44241234]
[1755825880132,0.37309,112770.0,112760.0,1.44241234]
[1755825880726,0.35174,112770.0,112760.0,1.44241234]
[1755825881330,0.37309,112770.0,112760.0,1.44241234]
[1755825881531,0.38275,112770.0,112760.0,1.44241234]
[1755825882431,0.41428,112770.0,112760.0,1.44241234]
[1755825882831,0.41428,112770.0,112760.0,3.12873234]
[1755825887433,0.38275,112770.0,112760.0,3.12873234]
[1755825887629,0.3614,112770.0,112760.0,3.12873234]
[1755825888634,0.38243,112770.0,112760.0,3.12873234]
[1755825889130,0.41553,112770.0,112760.0,3.12873234]
[1755825889330,0.43028,112770.0,112760.0,3.12873234]
[1755825890337,0.43028,112770.0,112760.0,3.40851872]
[1755825890538,0.44642,112770.0,112760.0,3.40851872]
[1755825899343,0.41332,112770.0,112760.0,3.40851872]
[1755825900443,0.44642,112770.0,112760.0,3.40851872]
[1755825900644,0.32662921,112770.0,112760.0,3.40851872]
[1755825900841,0.32662921,112770.0,112760.0,3.29708499]
[1755825905746,0.32662921,112770.0,112760.0,2.45595243]
[1755825906045,0.32662921,112770.0,112760.0,3.83490747]
[1755825906345,0.32662921,112770.0,112760.0,3.84090747]
[1755825906546,0.32662921,112770.0,112760.0,3.95252351]
[1755825906746,0.32662921,112770.0,112760.0,3.95552351]
[1755825906944,0.32662921,112770.0,112760.0,3.82621884]
[1755825907137,0.32662921,112770.0,112760.0,3.81821884]
[1755825907334,0.32662921,112770.0,112760.0,3.93083017]
[1755825907538,0.32662921,112770.0,112760.0,3.11263017]
[1755825907738,0.32662921,112770.0,112760.0,3.8776515]
[1755825907938,0.32662921,112770.0,112760.0,3.90956349]
[1755825909745,0.32662921,112770.0,112760.0,3.93081349]
[1755825911643,0.32662921,112770.0,112760.0,3.11265349]
[1755825911840,0.60700673,112770.0,112760.0,2.70673207]
[1755825912045,0.60700673,112770.0,112760.0,3.60453315]
[1755825912245,0.60700673,112770.0,112760.0,2.78645315]
[1755825912445,0.60700673,112770.0,112760.0,3.4928986]
[1755825912648,0.60700673,112770.0,112760.0,3.2272986]
[1755825913353,0.60700673,112770.0,112760.0,2.4092186]
[1755825913541,0.60700673,112770.0,112760.0,3.23628142]
[1755825914049,0.32662921,112770.0,112760.0,3.51665894]
[1755825914349,0.32662921,112770.0,112760.0,3.53690894]
[1755825915153,0.29352921,112770.0,112760.0,3.53690894]
[1755825915348,0.29352921,112770.0,112760.0,3.61663002]
[1755825915546,0.27877921,112770.0,112760.0,3.61663002]
[1755825915854,0.20868921,112770.0,112760.0,3.89700754]
[1755825916058,0.20868921,112770.0,112760.0,3.81728646]
[1755825916246,0.20868921,112770.0,112760.0,3.92892101]
[1755825916453,0.20868921,112770.0,112760.0,3.36817767]
[1755825916852,0.20868921,112770.0,112760.0,3.36997767]
[1755825917154,0.20868921,112770.0,112760.0,3.65036689]
[1755825917451,0.20097271,112770.0,112760.0,3.65036689]
[1755825917853,0.02707271,112770.0,112760.0,3.65036689]
[1755825918152,0.23681,112790.0,112760.0,3.65036689]
[1755825918153,0.28267,112790.0,112780.0,0.1264581]
[1755825918350,0.28267,112790.0,112780.0,1.66530186]
[1755825918550,0.28267,112790.0,112780.0,1.57661376]
[1755825918746,0.17673,112790.0,112780.0,1.57661376]
[1755825919152,0.17673,112790.0,112780.0,1.49699922]
[1755825919454,0.17773,112790.0,112780.0,1.49699922]
[1755825919646,0.17773,112790.0,112780.0,1.21661]
[1755825919848,0.17873,112790.0,112780.0,1.49699922]
[1755825920352,0.17873,112790.0,112780.0,1.21661]
[1755825920548,0.17873,112790.0,112780.0,1.56687663]
[1755825922249,0.17873,112790.0,112780.0,1.65556473]
[1755825922949,0.17873,112790.0,112780.0,1.66456842]
[1755825924557,0.17873,112790.0,112780.0,0.75784032]
[1755825924759,0.17873,112790.0,112780.0,1.57580032]
[1755825925161,0.17873,112790.0,112780.0,1.66448842]
[1755825925558,0.17873,112790.0,112780.0,1.57580032]
[1755825926352,0.17873,112790.0,112780.0,1.3840992]
[1755825926554,0.17873,112790.0,112780.0,1.66448842]
[1755825926754,0.1158,112790.0,112780.0,1.66448842]
[1755825927355,0.13088,112790.0,112780.0,1.66448842]
[1755825927561,0.14449,112790.0,112780.0,1.66448842]
[1755825927950,0.14449,112790.0,112780.0,1.57580032]
[1755825928361,0.14449,112790.0,112780.0,1.66448842]
[1755825928860,0.14449,112790.0,112780.0,1.57580032]
[1755825929264,0.0611,112790.0,112780.0,1.66448842]
[1755825929659,0.0611,112790.0,112780.0,1.3840992]
[1755825929957,0.1066,112790.0,112780.0,1.66448842]
[1755825930550,0.1164,112790.0,112780.0,1.57580032]
[1755825931157,0.13001,112790.0,112780.0,1.57580032]
[1755825931765,0.13001,112790.0,112780.0,1.66448842]
[1755825932165,0.13001,112790.0,112780.0,1.57580032]
[1755825932765,0.162,112790.0,112780.0,1.57580032]
[1755825933167,0.162,112790.0,112780.0,1.66448842]
[1755825933566,0.13001,112790.0,112780.0,1.66448842]
[1755825933867,0.1164,112790.0,112780.0,1.66448842]
[1755825934556,0.1164,112790.0,112780.0,1.57580032]
[1755825935869,0.1164,112790.0,112780.0,1.66448842]
[1755825936259,0.1164,112790.0,112780.0,1.9448006]
[1755825936670,0.1164,112790.0,112780.0,1.8561125]
[1755825937164,0.162,112790.0,112780.0,1.8561125]
[1755825937470,0.17708,112790.0,112780.0,1.8561125]
[1755825937769,0.14509,112790.0,112780.0,1.9448007]
[1755825938071,0.17708,112790.0,112780.0,1.8561125]
[1755825938557,0.17708,112790.0,112780.0,1.9448007]
[1755825938763,0.1164,112790.0,112780.0,1.9448007]
[1755825939272,0.1164,112790.0,112780.0,1.8561125]
[1755825939667,0.1164,112790.0,112780.0,1.9448007]
[1755825941067,0.1164,112790.0,112780.0,1.8561125]
[1755825941671,0.1164,112790.0,112780.0,1.2954111]
[1755825941866,0.17708,112790.0,112780.0,1.8561125]
[1755825942573,0.17708,112790.0,112780.0,1.2954111]
[1755825942773,0.17708,112790.0,112780.0,1.8561125]
[1755825943276,0.14509,112790.0,112780.0,0.4562011]
[1755825943574,0.14509,112790.0,112780.0,1.9446407]
[1755825943773,0.1164,112790.0,112780.0,1.9446407]
[1755825943970,0.14839,112790.0,112780.0,1.8559525]
[1755825944171,0.17708,112790.0,112780.0,1.8559525]
[1755825945171,0.17708,112790.0,112780.0,1.9446407]
[1755825946575,0.17708,112790.0,112780.0,1.8559525]
[1755825947173,0.17708,112790.0,112780.0,1.9446407]
[1755825948577,0.17708,112790.0,112780.0,1.8559525]
[1755825951581,0.17708,112790.0,112780.0,0.4774511]
[1755825951772,0.17708,112790.0,112780.0,1.8558725]
[1755825952077,0.4574307,112790.0,112780.0,1.8558725]
[1755825952278,0.17708,112790.0,112780.0,1.8558725]
[1755825952978,0.14509,112790.0,112780.0,1.3838591]
[1755825953172,0.13148,112790.0,112780.0,1.9445605]
[1755825953975,0.1164,112790.0,112780.0,1.9445605]
[1755825954574,0.1164,112790.0,112780.0,2.02417504]
[1755825954777,0.0611,112790.0,112780.0,2.02417504]
[1755825955275,0.0611,112790.0,112780.0,1.93548704]
[1755825955473,0.10764,112790.0,112780.0,1.8558725]
[1755825955676,0.1785,112790.0,112780.0,1.8558725]
[1755825958782,0.1785,112790.0,112780.0,1.2951711]
[1755825958981,0.1785,112790.0,112780.0,1.8558725]
[1755825960081,0.14678,112790.0,112780.0,1.8558725]
[1755825961276,0.1785,112790.0,112780.0,1.8558725]
[1755825965287,0.1785,112790.0,112780.0,1.93548704]
[1755825969089,0.4588507,112790.0,112780.0,1.93548704]
[1755825969881,0.4588507,112790.0,112780.0,1.01378564]
[1755825970081,0.4588507,112790.0,112780.0,0.99253564]
[1755825970285,0.4588507,112790.0,112780.0,1.1932718]
[1755825970482,0.4588507,112790.0,112780.0,1.2145218]
[1755825970883,0.8196507,112790.0,112780.0,0.9129211]
[1755825971181,0.8196507,112790.0,112780.0,0.99253564]
[1755825971381,0.8196507,112790.0,112780.0,0.9129211]
[1755825971983,0.8196507,112790.0,112780.0,0.08639741]
[1755825972184,0.8196507,112790.0,112780.0,0.90387741]
[1755825972890,0.8196507,112790.0,112780.0,0.92512741]
[1755825972891,1.0414907,112790.0,112780.0,0.92512741]
[1755825973190,1.0414907,112790.0,112780.0,1.20547811]
[1755825973586,1.0414907,112790.0,112780.0,0.90387741]
[1755825974292,1.0414907,112790.0,112780.0,0.88735741]
[1755825977695,1.0414907,112790.0,112780.0,0.90360741]
[1755825978698,0.07432,112780.0,112770.0,0.01625]
[1755825978899,1.0118814,112780.0,112770.0,0.83369]
[1755825980208,0.48335,112780.0,112770.0,0.83369]
[1755825980499,0.48335,112780.0,112770.0,0.85494]
[1755825980500,1.0440514,112780.0,112770.0,0.85494]
[1755825980903,0.7637007,112780.0,112770.0,1.14542986]
[1755825981307,0.7647007,112780.0,112770.0,1.14542986]
[1755825981605,0.7647007,112780.0,112770.0,1.14442986]
[1755825982798,0.48435,112780.0,112770.0,1.14442986]
[1755825982998,0.7300907,112780.0,112770.0,1.14442986]
[1755825983204,0.43491,112780.0,112770.0,1.14442986]
[1755825983404,0.7152607,112780.0,112770.0,1.14442986]
[1755825984309,0.7647007,112780.0,112770.0,1.14442986]
[1755825986511,0.7647007,112780.0,112770.0,0.86407916]
[1755825987105,0.7647007,112780.0,112770.0,1.14442986]
[1755825988905,0.4039007,112780.0,112770.0,1.14442986]
[1755825990810,0.4039007,112780.0,112770.0,1.16250925]
[1755825992513,0.4039007,112780.0,112770.0,1.16350925]
[1755825994012,0.4039007,112780.0,112770.0,1.16250925]
[1755825994418,0.3692907,112780.0,112770.0,1.16250925]
[1755825994611,0.3544607,112780.0,112770.0,1.16250925]
[1755825995114,0.3544607,112780.0,112770.0,0.88215855]
[1755825995314,0.3890707,112780.0,112770.0,0.88215855]
[1755825995515,0.05805,112780.0,112770.0,1.16250925]
[1755825995716,0.02588,112780.0,112770.0,1.16250925]
[1755825996512,0.04812,112780.0,112770.0,1.16250925]
[1755825997515,0.05805,112780.0,112770.0,1.16250925]
[1755825999810,0.09266,112780.0,112770.0,0.88215855]
[1755826000006,0.09266,112780.0,112770.0,1.16250925]
[1755826000211,0.3730107,112780.0,112770.0,1.16250925]
[1755826000411,0.05805,112780.0,112770.0,1.16250925]
[1755826000713,0.001,112780.0,112770.0,1.16250925]
[1755826001015,0.02588,112780.0,112770.0,1.16250925]
[1755826001518,0.04812,112780.0,112770.0,1.16250925]
[1755826002122,0.05805,112780.0,112770.0,0.88215855]
[1755826002416,0.05805,112780.0,112770.0,1.16250925]
[1755826002613,0.07288,112780.0,112770.0,1.16250925]
[1755826002812,0.4039007,112780.0,112770.0,1.16250925]
[1755826003720,0.12355,112780.0,112770.0,1.16250925]
[1755826003922,0.4039007,112780.0,112770.0,1.16350925]
[1755826004217,0.12355,112780.0,112770.0,1.16350925]
[1755826004424,0.03581,112780.0,112770.0,1.16350925]
[1755826004623,0.3384007,112780.0,112770.0,1.16350925]
[1755826004823,0.3374007,112780.0,112770.0,1.16350925]
[1755826005623,0.3720107,112780.0,112770.0,1.16350925]
[1755826006618,0.3868407,112780.0,112770.0,1.16350925]
[1755826007122,0.7861307,112790.0,112780.0,0.03753]
[1755826007327,0.53762,112790.0,112780.0,0.38173866]
[1755826007528,0.8179707,112790.0,112780.0,0.38173866]
[1755826008722,0.4122007,112790.0,112780.0,0.66208936]
[1755826008916,0.13185,112790.0,112780.0,0.67784594]
[1755826009111,0.11531,112790.0,112780.0,0.67784594]
[1755826009715,0.11531,112790.0,112780.0,0.74785825]
[1755826011124,0.3956607,112790.0,112780.0,0.74785825]
[1755826011323,0.4097907,112790.0,112780.0,0.74785825]
[1755826011522,0.4263307,112790.0,112780.0,0.74785825]
[1755826011724,0.4581707,112790.0,112780.0,0.74785825]
[1755826012828,0.3956607,112790.0,112780.0,0.74785825]
[1755826013026,0.3956607,112790.0,112780.0,0.46750755]
[1755826013227,0.3956607,112790.0,112780.0,0.74785825]
[1755826013420,0.4416307,112790.0,112780.0,0.74785825]
[1755826013620,0.4416307,112790.0,112780.0,1.10865825]
[1755826013825,0.4416307,112790.0,112780.0,0.82830755]
[1755826014030,0.4416307,112790.0,112780.0,1.10865825]
[1755826015329,0.4581707,112790.0,112780.0,1.10865825]
[1755826016432,0.17782,112790.0,112780.0,1.10865825]
[1755826016934,0.11531,112790.0,112780.0,1.10865825]
[1755826018833,0.11531,112790.0,112780.0,1.19734625]
[1755826019038,0.084,112790.0,112780.0,1.19734625]
[1755826020137,0.084,112790.0,112780.0,1.10865825]
[1755826020328,0.10542,112790.0,112780.0,1.10865825]
[1755826021429,0.11531,112790.0,112780.0,1.10865825]
[1755826021731,0.0601,112790.0,112780.0,0.63664485]
[1755826021931,0.0601,112790.0,112780.0,1.47769695]
[1755826022234,0.0601,112790.0,112780.0,1.74329695]
[1755826022432,0.0601,112790.0,112780.0,1.46294625]
[1755826023435,0.0601,112790.0,112780.0,1.46394625]
[1755826024029,0.0591,112790.0,112780.0,1.46394625]
[1755826024230,0.0591,112790.0,112780.0,1.46494625]
[1755826024430,0.0591,112790.0,112780.0,1.38533171]
[1755826024625,0.0591,112790.0,112780.0,1.38433171]
[1755826028139,0.0591,112790.0,112780.0,1.66468241]
[1755826028336,0.0591,112790.0,112780.0,1.74429695]
[1755826029439,0.0591,112790.0,112780.0,1.74529695]
[1755826030341,0.0591,112790.0,112780.0,1.46494625]
[1755826030641,0.0591,112790.0,112780.0,1.74529695]
[1755826031642,0.0591,112790.0,112780.0,3.43149695]
[1755826033441,0.0591,112790.0,112780.0,3.15114625]
[1755826033846,0.0591,112790.0,112780.0,3.96782625]
[1755826034238,0.17682,112790.0,112780.0,3.87913825]
[1755826034446,0.4571707,112790.0,112780.0,3.06245825]
[1755826034647,0.4571707,112790.0,112780.0,3.87913825]
[1755826035039,0.17682,112790.0,112780.0,3.31843685]
[1755826035240,0.4579707,112790.0,112780.0,3.29718685]
[1755826035448,0.4579707,112790.0,112780.0,3.57753755]
[1755826036047,0.4579707,112790.0,112780.0,3.57749755]
[1755826036649,0.4579707,112790.0,112780.0,1.89129755]
[1755826036846,0.4579707,112790.0,112780.0,1.62569755]
[1755826038245,0.4579707,112790.0,112780.0,1.34534685]
[1755826038450,0.8187707,112790.0,112780.0,0.90489231]
[1755826038750,0.8187707,112790.0,112780.0,0.88861231]
[1755826039866,0.53842,112790.0,112780.0,0.95232676]
[1755826040155,0.8187707,112790.0,112780.0,0.95132226]
[1755826040341,0.8187707,112790.0,112780.0,1.23167296]
[1755826041049,0.8187707,112790.0,112780.0,1.24708296]
[1755826041546,0.8187707,112790.0,112780.0,1.24608296]
[1755826041746,0.8179707,112790.0,112780.0,1.24608296]
[1755826042048,0.4571707,112790.0,112780.0,1.62813296]
[1755826042245,0.17682,112790.0,112780.0,1.28407231]
[1755826043045,0.17682,112790.0,112780.0,1.5644821]
[1755826043854,0.14498,112790.0,112780.0,1.5644821]
[1755826044042,0.17688,112790.0,112780.0,1.5644821]
[1755826045452,0.17688,112790.0,112780.0,1.28407231]
[1755826047853,0.14498,112790.0,112780.0,1.28407231]
[1755826048153,0.17688,112790.0,112780.0,1.28407231]
[1755826048353,0.17688,112790.0,112780.0,1.5644821]
[1755826049550,0.0591,112790.0,112780.0,1.6531701]
[1755826049754,0.0591,112790.0,112780.0,1.73278464]
[1755826049956,0.0591,112790.0,112780.0,1.6531701]
[1755826050454,0.0591,112790.0,112780.0,1.76480465]
[1755826050757,0.0591,112790.0,112780.0,1.76560465]
[1755826050948,0.03785,112790.0,112780.0,2.03120465]
[1755826054864,0.03785,112790.0,112780.0,2.03040465]
[1755826055662,0.03785,112790.0,112780.0,3.71660465]
[1755826056159,0.3608,112820.0,112790.0,0.0894733]
[1755826056360,0.01162677,112820.0,112810.0,1.13732419]
[1755826056560,0.01162677,112820.0,112810.0,1.2168979]
[1755826056865,0.14742677,112820.0,112810.0,1.13732419]
[1755826057367,0.14842677,112820.0,112810.0,1.13732419]
[1755826057561,0.17165677,112820.0,112810.0,1.13732419]
[1755826057751,0.17265677,112820.0,112810.0,1.13732419]
[1755826058166,0.17265677,112820.0,112810.0,1.20089898]
[1755826058366,0.19795677,112820.0,112810.0,1.11223458]
[1755826058662,0.24515677,112820.0,112810.0,1.11223458]
[1755826058863,0.24815677,112820.0,112810.0,1.11223458]
[1755826061465,0.24815677,112820.0,112810.0,0.75143458]
[1755826061669,0.24815677,112820.0,112810.0,1.55767458]
[1755826062373,0.21625677,112820.0,112810.0,1.56865458]
[1755826062565,0.24815677,112820.0,112810.0,1.56865458]
[1755826062964,0.24815677,112820.0,112810.0,1.28824479]
[1755826063164,0.24815677,112820.0,112810.0,1.56865458]
[1755826063364,0.24815677,112820.0,112810.0,1.28824479]
[1755826063565,0.24815677,112820.0,112810.0,1.55767458]
[1755826064269,0.21625677,112820.0,112810.0,1.56865458]
[1755826064571,0.23385677,112820.0,112810.0,1.56865458]
[1755826064759,0.24815677,112820.0,112810.0,1.28824479]
[1755826064966,0.24815677,112820.0,112810.0,1.55767458]
[1755826065267,0.20195677,112820.0,112810.0,1.56865458]
[1755826065566,0.17665677,112820.0,112810.0,1.56865458]
[1755826065765,0.18642677,112820.0,112810.0,1.56865458]
[1755826066069,0.24815677,112820.0,112810.0,1.58626821]
[1755826066766,0.24815677,112820.0,112810.0,1.57528821]
[1755826067070,0.24815677,112820.0,112810.0,1.57512821]
[1755826067573,0.24815677,112820.0,112810.0,1.58610821]
[1755826067873,0.24615677,112820.0,112810.0,1.58610821]
[1755826068064,0.21425677,112820.0,112810.0,1.58610821]
[1755826068266,0.19995677,112820.0,112810.0,1.58610821]
[1755826068466,0.19995677,112820.0,112810.0,1.52253342]
[1755826068867,0.24741677,112820.0,112810.0,1.52253342]
[1755826069166,0.24341677,112820.0,112810.0,1.58602095]
[1755826070864,0.17272677,112820.0,112810.0,1.67468535]
[1755826071064,0.14742677,112820.0,112810.0,2.03548535]
[1755826074378,0.14742677,112820.0,112810.0,1.97199782]
[1755826075076,0.14742677,112820.0,112810.0,2.05157153]
[1755826076178,0.14742677,112820.0,112810.0,1.96290713]
[1755826076373,0.14742677,112820.0,112810.0,2.05157153]
[1755826076573,0.14742677,112820.0,112810.0,1.96290713]
[1755826076773,0.14742677,112820.0,112810.0,1.88333342]
[1755826076973,0.14742677,112820.0,112810.0,1.97199792]
[1755826077380,0.14742677,112820.0,112810.0,2.05157163]
[1755826078076,0.14742677,112820.0,112810.0,1.96290713]
[1755826079181,0.14742677,112820.0,112810.0,2.05157163]
[1755826079573,0.14742677,112820.0,112810.0,1.96290713]
[1755826080377,0.14742677,112820.0,112810.0,2.05157163]
[1755826080577,0.1358,112820.0,112810.0,2.05157163]
[1755826082883,0.1358,112820.0,112810.0,1.96290713]
[1755826083281,0.15939,112820.0,112810.0,1.96290713]
[1755826084187,0.15939,112820.0,112810.0,2.22850713]
[1755826085175,0.25322,112820.0,112810.0,2.14893342]
[1755826085581,0.23879,112820.0,112810.0,2.14893342]
[1755826086773,0.23879,112820.0,112810.0,1.33285342]
[1755826086774,0.20576,112820.0,112810.0,1.33285342]
[1755826086981,0.25322,112820.0,112810.0,2.22820262]
[1755826087484,0.25322,112820.0,112810.0,1.41248262]
[1755826087683,0.25322,112820.0,112810.0,2.22816262]
[1755826087878,0.25322,112820.0,112810.0,2.13755342]
[1755826088185,0.25322,112820.0,112810.0,2.21718425]
[1755826090092,0.25322,112820.0,112810.0,1.95158425]
[1755826090881,0.25322,112820.0,112810.0,1.95154425]
[1755826092394,0.25322,112820.0,112810.0,0.85549446]
[1755826092592,0.89522979,112820.0,112810.0,0.08957083]
[1755826092897,0.89522979,112820.0,112810.0,0.83721]
[1755826093090,0.89522979,112820.0,112810.0,0.85386]
[1755826093595,0.25402,112820.0,112810.0,0.85386]
[1755826093798,0.25402,112820.0,112810.0,0.93349083]
[1755826094096,0.53442979,112820.0,112810.0,0.93349083]
[1755826094296,0.25402,112820.0,112810.0,0.93349083]
[1755826094497,0.25322,112820.0,112810.0,0.85386]
[1755826094799,0.25322,112820.0,112810.0,0.93349083]
[1755826095904,0.25322,112820.0,112810.0,0.94447083]
[1755826096699,0.25322,112820.0,112810.0,0.86484]
[1755826096901,0.25322,112820.0,112810.0,0.94447083]
[1755826097101,0.25322,112820.0,112810.0,0.86484]
[1755826098094,0.25322,112820.0,112810.0,0.85386]
[1755826098294,0.25322,112820.0,112810.0,0.91755346]
[1755826098601,0.53362979,112820.0,112810.0,0.85386]
[1755826098998,0.20576,112820.0,112810.0,1.56973403]
[1755826099302,0.18187,112820.0,112810.0,1.59471469]
[1755826099701,0.15939,112820.0,112810.0,1.59471469]
[1755826100404,0.15939,112820.0,112810.0,1.67434552]
[1755826100699,0.15939,112820.0,112810.0,1.67514552]
[1755826100700,0.1358,112820.0,112810.0,1.67514552]
[1755826100904,0.1358,112820.0,112810.0,1.59551469]
[1755826102502,0.1358,112820.0,112810.0,1.67507808]
[1755826104411,0.1358,112820.0,112810.0,3.36079808]
[1755826107908,0.1358,112820.0,112810.0,3.62639808]
[1755826110409,0.1358,112820.0,112810.0,3.54683469]
[1755826112511,0.1358,112820.0,112810.0,3.65846924]
[1755826115112,0.16076,112820.0,112810.0,3.65846924]
[1755826115414,0.16076,112820.0,112810.0,3.54683469]
[1755826117016,0.18324,112820.0,112810.0,3.54683469]
[1755826119417,0.16076,112820.0,112810.0,3.54683469]
[1755826120215,0.16076,112820.0,112810.0,3.65846924]
[1755826122018,0.18324,112820.0,112810.0,3.65846924]
[1755826122716,0.18324,112820.0,112810.0,3.80576924]
[1755826123017,0.18324,112820.0,112810.0,3.65846924]
[1755826127619,0.16076,112820.0,112810.0,3.65846924]
[1755826128626,0.16076,112820.0,112810.0,3.54683469]
[1755826129320,0.0410153,112820.0,112810.0,3.54683469]
[1755826129720,0.0410153,112820.0,112810.0,3.67628415]
[1755826130120,0.0410153,112820.0,112810.0,3.56479494]
[1755826134325,0.0626253,112820.0,112810.0,3.56479494]
[1755826138028,0.0410153,112820.0,112810.0,3.56479494]
[1755826140129,0.0410153,112820.0,112810.0,3.67628415]
[1755826140320,0.0410153,112820.0,112810.0,3.95616362]
[1755826140829,0.0626253,112820.0,112810.0,3.95536362]
[1755826141030,0.0724253,112820.0,112810.0,3.95536362]
[1755826150330,0.0724253,112820.0,112810.0,3.84387441]
[1755826150737,0.1334553,112820.0,112810.0,3.84387441]
[1755826152434,0.1334553,112820.0,112810.0,2.15815441]
[1755826152629,0.1334553,112820.0,112810.0,2.15815461]
[1755826154936,0.1174,112820.0,112810.0,2.15815461]
[1755826155232,0.03532012,112820.0,112810.0,2.19227461]
[1755826155537,0.09442012,112820.0,112810.0,2.19227461]
[1755826157239,0.09442012,112820.0,112810.0,2.30384608]
[1755826157538,0.08071,112820.0,112810.0,2.30384608]
[1755826162038,0.08071,112820.0,112810.0,2.19227461]
[1755826163136,0.08071,112820.0,112810.0,2.33957461]
[1755826163436,0.08071,112820.0,112810.0,2.19227461]
[1755826164033,0.08071,112820.0,112810.0,1.37663461]
[1755826164237,0.45821463,112820.0,112810.0,1.92332009]
[1755826164434,0.17807,112820.0,112810.0,1.84362488]
[1755826164639,0.17807,112820.0,112810.0,1.95519635]
[1755826167042,0.17807,112820.0,112810.0,1.68959635]
[1755826167629,0.45821463,112820.0,112810.0,1.65547635]
[1755826167833,0.45821463,112820.0,112810.0,1.57728488]
[1755826168235,0.45821463,112820.0,112810.0,1.65696061]